[Event "Grandmaster Triathlon - Blitz (GM2)"]
[Site "Biel, Switzerland"]
[Date "2026.07.19"]
[Round "7.3"]
[White "Kosteniuk, Alexandra"]
[Black "Materia, Marco"]
[Result "1/2-1/2"]
[TimeControl "3 + 2"]
[WhiteTitle "-"]
[BlackTitle "-"]
[WhiteFideId "4128125"]
[BlackFideId "45150451"]
[WhiteElo "2392"]
[BlackElo "2509"]

1. e4 {[%clk 00:03:03]} c5 {[%clk 00:03:04]} 2. Nf3 {[%clk 00:03:04]} {[%emt
00:00:02]} e6 {[%clk 00:03:03]} {[%emt 00:00:02]} 3. c3 {[%clk 00:03:05]} d5
{[%clk 00:03:04]} {[%emt 00:00:01]} 4. exd5 {[%clk 00:03:05]} {[%emt 00:00:02]}
Qxd5 {[%clk 00:03:05]} {[%emt 00:00:01]} 5. d4 {[%clk 00:03:06]} {[%emt
00:00:01]} Nf6 {[%clk 00:03:06]} 6. Be2 {[%clk 00:03:07]} cxd4 {[%clk
00:03:05]} {[%emt 00:00:03]} 7. cxd4 {[%clk 00:03:06]} {[%emt 00:00:03]} Bb4+
{[%clk 00:03:06]} {[%emt 00:00:01]} 8. Nc3 {[%clk 00:03:06]} {[%emt 00:00:02]}
O-O {[%clk 00:03:05]} {[%emt 00:00:02]} 9. O-O {[%clk 00:03:07]} {[%emt
00:00:02]} Bxc3 {[%clk 00:03:06]} {[%emt 00:00:02]} 10. bxc3 {[%clk 00:03:08]}
{[%emt 00:00:01]} Nc6 {[%clk 00:02:53]} {[%emt 00:00:15]} 11. c4 {[%clk
00:03:03]} {[%emt 00:00:07]} Qd6 {[%clk 00:02:50]} {[%emt 00:00:04]} 12. Bb2
{[%clk 00:02:59]} {[%emt 00:00:06]} b6 {[%clk 00:02:49]} {[%emt 00:00:03]} 13.
c5 {[%clk 00:02:34]} {[%emt 00:00:27]} bxc5 {[%clk 00:02:20]} {[%emt 00:00:31]}
14. dxc5 {[%clk 00:02:36]} Qxd1 {[%clk 00:01:51]} {[%emt 00:00:30]} 15. Rfxd1
{[%clk 00:02:36]} Nd5 {[%clk 00:01:52]} {[%emt 00:00:03]} 16. Ne5 {[%clk
00:02:27]} {[%emt 00:00:11]} Nxe5 {[%clk 00:01:31]} {[%emt 00:00:23]} 17. Bxe5
{[%clk 00:02:27]} {[%emt 00:00:01]} Bd7 {[%clk 00:01:28]} {[%emt 00:00:05]} 18.
Rab1 {[%clk 00:02:08]} {[%emt 00:00:21]} Bc6 {[%clk 00:01:29]} {[%emt
00:00:02]} 19. Ba6 {[%clk 00:01:36]} {[%emt 00:00:34]} f6 {[%clk 00:01:30]}
{[%emt 00:00:02]} 20. Bd6 {[%clk 00:01:14]} {[%emt 00:00:24]} Rf7 {[%clk
00:01:17]} {[%emt 00:00:15]} 21. Re1 {[%clk 00:01:10]} {[%emt 00:00:06]} Re8
{[%clk 00:01:13]} {[%emt 00:00:05]} 22. f3 {[%clk 00:01:09]} {[%emt 00:00:04]}
Rd7 {[%clk 00:01:13]} {[%emt 00:00:02]} 23. Rb2 {[%clk 00:01:04]} {[%emt
00:00:07]} Kf7 {[%clk 00:01:14]} {[%emt 00:00:01]} 24. Kf2 {[%clk 00:01:04]}
{[%emt 00:00:02]} Ne7 {[%clk 00:01:06]} {[%emt 00:00:10]} 25. Bc4 {[%clk
00:00:54]} {[%emt 00:00:10]} Nf5 {[%clk 00:01:07]} {[%emt 00:00:03]} 26. Rbe2
{[%clk 00:00:48]} {[%emt 00:00:08]} Nd4 {[%clk 00:00:57]} {[%emt 00:00:12]} 27.
Rd2 {[%clk 00:00:41]} {[%emt 00:00:10]} Nf5 {[%clk 00:00:58]} {[%emt 00:00:01]}
28. g4 {[%clk 00:00:37]} {[%emt 00:00:06]} Nxd6 {[%clk 00:00:59]} {[%emt
00:00:02]} 29. cxd6 {[%clk 00:00:27]} {[%emt 00:00:11]} g5 {[%clk 00:00:47]}
{[%emt 00:00:14]} 30. Kg3 {[%clk 00:00:26]} {[%emt 00:00:03]} Rb7 {[%clk
00:00:37]} {[%emt 00:00:12]} 31. Bb3 {[%clk 00:00:22]} {[%emt 00:00:06]} Bd7
{[%clk 00:00:38]} {[%emt 00:00:01]} 32. h4 {[%clk 00:00:22]} {[%emt 00:00:02]}
Rb6 {[%clk 00:00:33]} {[%emt 00:00:07]} 33. hxg5 {[%clk 00:00:23]} {[%emt
00:00:01]} fxg5 {[%clk 00:00:34]} 34. Rh1 {[%clk 00:00:22]} {[%emt 00:00:02]}
Kg7 {[%clk 00:00:34]} {[%emt 00:00:02]} 35. Re1 {[%clk 00:00:17]} {[%emt
00:00:08]} h6 {[%clk 00:00:34]} {[%emt 00:00:02]} 36. Re5 {[%clk 00:00:17]}
{[%emt 00:00:02]} Kf6 {[%clk 00:00:34]} {[%emt 00:00:01]} 37. Rc5 {[%clk
00:00:13]} {[%emt 00:00:06]} Rd8 {[%clk 00:00:32]} {[%emt 00:00:04]} 38. Rc7
{[%clk 00:00:15]} {[%emt 00:00:01]} Bb5 {[%clk 00:00:26]} {[%emt 00:00:09]} 39.
Rxa7 {[%clk 00:00:11]} {[%emt 00:00:06]} Rdxd6 {[%clk 00:00:26]} {[%emt
00:00:02]} 40. Rh2 {[%clk 00:00:11]} {[%emt 00:00:01]} Kg6 {[%clk 00:00:25]}
{[%emt 00:00:04]} 41. Ra8 {[%clk 00:00:09]} {[%emt 00:00:04]} Kg7 {[%clk
00:00:21]} {[%emt 00:00:06]} 42. Ra7+ {[%clk 00:00:10]} {[%emt 00:00:02]} Kg6
{[%clk 00:00:21]} {[%emt 00:00:01]} 43. Ra8 {[%clk 00:00:11]} {[%emt 00:00:01]}
Kg7 {[%clk 00:00:20]} {[%emt 00:00:03]} 44. Ra7+ {[%clk 00:00:07]} {[%emt
00:00:06]} Rd7 {[%clk 00:00:22]} 45. Rxd7+ {[%clk 00:00:07]} {[%emt 00:00:02]}
Bxd7 {[%clk 00:00:23]} 46. Rd2 {[%clk 00:00:08]} {[%emt 00:00:01]} Be8 {[%clk
00:00:22]} {[%emt 00:00:03]} 47. Kf2 {[%clk 00:00:09]} {[%emt 00:00:01]} Kf6
{[%clk 00:00:23]} 48. Ke3 {[%clk 00:00:10]} Bb5 {[%clk 00:00:19]} {[%emt
00:00:06]} 49. Rd4 {[%clk 00:00:11]} Rc6 {[%clk 00:00:20]} {[%emt 00:00:02]} 50.
Rb4 {[%clk 00:00:10]} {[%emt 00:00:03]} Ba6 {[%clk 00:00:18]} {[%emt 00:00:04]}
51. Rb8 {[%clk 00:00:08]} {[%emt 00:00:04]} Rc3+ {[%clk 00:00:18]} {[%emt
00:00:01]} 52. Kf2 {[%clk 00:00:09]} {[%emt 00:00:01]} Ke7 {[%clk 00:00:16]}
{[%emt 00:00:04]} 53. Rb6 {[%clk 00:00:09]} {[%emt 00:00:03]} Bc8 {[%clk
00:00:17]} 54. a4 {[%clk 00:00:10]} {[%emt 00:00:01]} Rc5 {[%clk 00:00:17]}
{[%emt 00:00:02]} 55. Ke3 {[%clk 00:00:09]} {[%emt 00:00:03]} Rc3+ {[%clk
00:00:17]} {[%emt 00:00:01]} 56. Kf2 {[%clk 00:00:08]} {[%emt 00:00:03]} Rc5
{[%clk 00:00:16]} {[%emt 00:00:04]} 57. Rb8 {[%clk 00:00:04]} {[%emt 00:00:05]}
Bd7 {[%clk 00:00:16]} {[%emt 00:00:02]} 58. Rb6 {[%clk 00:00:05]} {[%emt
00:00:02]} Ra5 {[%clk 00:00:16]} {[%emt 00:00:02]} 59. Ke3 {[%clk 00:00:06]}
{[%emt 00:00:01]} Bxa4 {[%clk 00:00:15]} {[%emt 00:00:03]} 60. Bxa4 {[%clk
00:00:04]} {[%emt 00:00:03]} Rxa4 {[%clk 00:00:17]} {[%emt 00:00:01]} 61. Rb7+
{[%clk 00:00:06]} Kf6 {[%clk 00:00:18]} 62. Rh7 {[%clk 00:00:07]} Kg6 {[%clk
00:00:19]} {[%emt 00:00:01]} 63. Re7 {[%clk 00:00:08]} {[%emt 00:00:01]} Ra6
{[%clk 00:00:19]} {[%emt 00:00:02]} 64. Ke4 {[%clk 00:00:07]} {[%emt 00:00:02]}
Kf6 {[%clk 00:00:18]} {[%emt 00:00:02]} 65. Rh7 {[%clk 00:00:08]} {[%emt
00:00:01]} Ra4+ {[%clk 00:00:20]} 66. Ke3 {[%clk 00:00:09]} Kg6 {[%clk
00:00:21]} 67. Re7 {[%clk 00:00:11]} Ra6 {[%clk 00:00:22]} {[%emt 00:00:01]} 68.
Ke4 {[%clk 00:00:12]} h5 {[%clk 00:00:24]} 69. gxh5+ {[%clk 00:00:13]} {[%emt
00:00:01]} Kxh5 {[%clk 00:00:25]} {[%emt 00:00:01]} 70. Rh7+ {[%clk 00:00:13]}
{[%emt 00:00:02]} Kg6 {[%clk 00:00:26]} 71. Re7 {[%clk 00:00:12]} {[%emt
00:00:03]} Kf6 {[%clk 00:00:27]} 72. Re8 {[%clk 00:00:14]} Ra4+ {[%clk
00:00:29]} 73. Ke3 {[%clk 00:00:15]} Ke5 {[%clk 00:00:30]} 74. Rg8 {[%clk
00:00:14]} {[%emt 00:00:02]} Ra3+ {[%clk 00:00:31]} {[%emt 00:00:01]} 75. Kf2
{[%clk 00:00:16]} Kf6 {[%clk 00:00:32]} {[%emt 00:00:01]} 76. Rf8+ {[%clk
00:00:16]} {[%emt 00:00:02]} Kg6 {[%clk 00:00:33]} 77. Re8 {[%clk 00:00:16]}
{[%emt 00:00:02]} Kf7 {[%clk 00:00:33]} {[%emt 00:00:02]} 78. Rb8 {[%clk
00:00:17]} {[%emt 00:00:01]} e5 {[%clk 00:00:33]} {[%emt 00:00:01]} 79. Rb6
{[%clk 00:00:17]} {[%emt 00:00:02]} Rd3 {[%clk 00:00:34]} 80. Kg2 {[%clk
00:00:17]} {[%emt 00:00:02]} Rd4 {[%clk 00:00:35]} {[%emt 00:00:02]} 81. Kg3
{[%clk 00:00:18]} Rf4 {[%clk 00:00:36]} 82. Ra6 {[%clk 00:00:17]} {[%emt
00:00:04]} Rf6 {[%clk 00:00:37]} 83. Ra8 {[%clk 00:00:18]} Kg6 {[%clk
00:00:37]} {[%emt 00:00:02]} 84. Rg8+ {[%clk 00:00:17]} {[%emt 00:00:03]} Kf5
{[%clk 00:00:38]} {[%emt 00:00:01]} 85. Ra8 {[%clk 00:00:18]} {[%emt 00:00:01]}
Rb6 {[%clk 00:00:34]} {[%emt 00:00:06]} 86. Rf8+ {[%clk 00:00:19]} {[%emt
00:00:02]} Kg6 {[%clk 00:00:34]} {[%emt 00:00:01]} 87. Rg8+ {[%clk 00:00:20]}
Kf5 {[%clk 00:00:34]} {[%emt 00:00:02]} 88. Rf8+ {[%clk 00:00:21]} Rf6 {[%clk
00:00:36]} 89. Rb8 {[%clk 00:00:22]} Rf7 {[%clk 00:00:28]} {[%emt 00:00:10]} 90.
Ra8 {[%clk 00:00:21]} {[%emt 00:00:03]} Rb7 {[%clk 00:00:23]} {[%emt 00:00:06]}
91. Rf8+ {[%clk 00:00:22]} {[%emt 00:00:02]} Kg6 {[%clk 00:00:25]} 92. Rg8+
{[%clk 00:00:23]} Kf6 {[%clk 00:00:26]} 93. Rf8+ {[%clk 00:00:25]} Rf7 {[%emt
00:00:02]} 94. Ra8 {[%clk 00:00:26]} Re7 {[%clk 00:00:28]} {[%emt 00:00:01]} 95.
Rf8+ {[%clk 00:00:26]} {[%emt 00:00:02]} Kg7 {[%clk 00:00:28]} {[%emt
00:00:02]} 96. Ra8 {[%clk 00:00:24]} {[%emt 00:00:04]} Rf7 {[%clk 00:00:29]}
{[%emt 00:00:02]} 97. Re8 {[%clk 00:00:19]} {[%emt 00:00:06]} Rf5 {[%clk
00:00:29]} {[%emt 00:00:01]} 98. Kg4 {[%clk 00:00:18]} {[%emt 00:00:03]} Rf4+
{[%clk 00:00:28]} {[%emt 00:00:03]} 99. Kxg5 {[%clk 00:00:18]} {[%emt
00:00:03]} Rxf3 {[%clk 00:00:29]} 100. Rxe5 {[%clk 00:00:18]} {[%emt 00:00:01]}
1/2-1/2

[Event "Grandmaster Triathlon - Blitz (GM2)"]
[Site "Biel, Switzerland"]
[Date "2026.07.19"]
[Round "8.1"]
[White "Materia, Marco"]
[Black "Xiao, Tong(Qd)"]
[Result "0-1"]
[TimeControl "3 + 2"]
[WhiteTitle "-"]
[BlackTitle "-"]
[WhiteFideId "45150451"]
[BlackFideId "8622388"]
[WhiteElo "2509"]
[BlackElo "2465"]

1. d4 {[%clk 00:03:03]} {[%emt 00:04:18]} Nf6 {[%clk 00:03:04]} 2. Nf3 {[%clk
00:03:05]} d5 {[%clk 00:03:05]} {[%emt 00:00:01]} 3. Bf4 {[%clk 00:03:05]} e6
{[%clk 00:03:06]} {[%emt 00:00:01]} 4. e3 {[%clk 00:03:06]} c5 {[%clk
00:03:06]} {[%emt 00:00:02]} 5. Nbd2 {[%clk 00:03:07]} {[%emt 00:00:01]} Bd6
{[%clk 00:03:06]} {[%emt 00:00:02]} 6. Bb5+ {[%clk 00:03:08]} {[%emt 00:00:01]}
Nc6 {[%clk 00:03:06]} {[%emt 00:00:02]} 7. dxc5 {[%clk 00:03:08]} {[%emt
00:00:01]} Bxc5 {[%clk 00:03:07]} {[%emt 00:00:02]} 8. O-O {[%clk 00:03:09]}
{[%emt 00:00:01]} O-O {[%clk 00:03:05]} {[%emt 00:00:04]} 9. c4 {[%clk
00:03:10]} {[%emt 00:00:01]} Ne7 {[%clk 00:02:52]} {[%emt 00:00:15]} 10. Rc1
{[%clk 00:02:48]} {[%emt 00:00:24]} b6 {[%clk 00:02:37]} {[%emt 00:00:17]} 11.
cxd5 {[%clk 00:02:41]} {[%emt 00:00:09]} Nfxd5 {[%clk 00:02:38]} {[%emt
00:00:01]} 12. Ne4 {[%clk 00:02:37]} {[%emt 00:00:06]} Nxf4 {[%clk 00:02:32]}
{[%emt 00:00:08]} 13. exf4 {[%clk 00:02:37]} {[%emt 00:00:02]} a6 {[%clk
00:01:51]} {[%emt 00:00:43]} 14. Bd3 {[%clk 00:02:33]} {[%emt 00:00:06]} Nd5
{[%clk 00:01:44]} {[%emt 00:00:09]} 15. Nxc5 {[%clk 00:02:33]} {[%emt
00:00:02]} bxc5 {[%clk 00:01:46]} 16. Be4 {[%clk 00:02:26]} {[%emt 00:00:09]}
Rb8 {[%clk 00:01:24]} {[%emt 00:00:24]} 17. Qc2 {[%clk 00:02:12]} {[%emt
00:00:16]} h6 {[%clk 00:01:25]} 18. Rfd1 {[%clk 00:02:09]} {[%emt 00:00:05]}
Qf6 {[%clk 00:01:22]} {[%emt 00:00:05]} 19. Qxc5 {[%clk 00:01:35]} {[%emt
00:00:36]} Nxf4 {[%clk 00:01:21]} {[%emt 00:00:03]} 20. Bh7+ {[%clk 00:01:21]}
{[%emt 00:00:16]} Kxh7 {[%clk 00:01:22]} 21. Qxf8 {[%clk 00:01:22]} {[%emt
00:00:01]} Ne2+ {[%clk 00:01:24]} 22. Kh1 {[%clk 00:01:20]} {[%emt 00:00:03]}
Nxc1 {[%clk 00:01:24]} {[%emt 00:00:02]} 23. Rxc1 {[%clk 00:01:21]} Qxb2 {[%clk
00:01:21]} {[%emt 00:00:05]} 24. Rxc8 {[%clk 00:01:22]} {[%emt 00:00:02]} Qa1+
{[%clk 00:01:22]} 25. Ng1 {[%clk 00:01:23]} Rb1 {[%clk 00:01:24]} {[%emt
00:00:01]} 26. h3 {[%clk 00:01:01]} {[%emt 00:00:24]} Rxg1+ {[%clk 00:01:24]}
{[%emt 00:00:02]} 27. Kh2 {[%clk 00:01:02]} Qf1 {[%clk 00:01:23]} {[%emt
00:00:03]} 0-1

[Event "Grandmaster Triathlon - Blitz (GM2)"]
[Site "Biel, Switzerland"]
[Date "2026.07.19"]
[Round "8.2"]
[White "Yip, Carissa"]
[Black "Kosteniuk, Alexandra"]
[Result "1-0"]
[TimeControl "3 + 2"]
[WhiteTitle "-"]
[BlackTitle "-"]
[WhiteFideId "2090732"]
[BlackFideId "4128125"]
[WhiteElo "2369"]
[BlackElo "2392"]

1. e4 {[%clk 00:03:03]} c6 {[%clk 00:03:03]} {[%emt 00:00:01]} 2. d4 {[%clk
00:03:00]} {[%emt 00:00:05]} d5 {[%clk 00:03:05]} {[%emt 00:00:01]} 3. Nd2
{[%clk 00:02:53]} {[%emt 00:00:08]} dxe4 {[%clk 00:03:05]} {[%emt 00:00:01]} 4.
Nxe4 {[%clk 00:02:54]} Nf6 {[%clk 00:03:07]} 5. Nxf6+ {[%clk 00:02:55]} {[%emt
00:00:01]} exf6 {[%clk 00:03:08]} {[%emt 00:00:01]} 6. c3 {[%clk 00:02:55]}
{[%emt 00:00:01]} Bd6 {[%clk 00:03:09]} 7. Bd3 {[%clk 00:02:56]} {[%emt
00:00:01]} O-O {[%clk 00:03:09]} {[%emt 00:00:02]} 8. Ne2 {[%clk 00:02:57]}
{[%emt 00:00:01]} Re8 {[%clk 00:03:09]} {[%emt 00:00:02]} 9. Qc2 {[%clk
00:02:57]} {[%emt 00:00:02]} h5 {[%clk 00:03:06]} {[%emt 00:00:05]} 10. Be3
{[%clk 00:02:55]} {[%emt 00:00:03]} Nd7 {[%clk 00:03:03]} {[%emt 00:00:06]} 11.
O-O-O {[%clk 00:02:54]} {[%emt 00:00:04]} b5 {[%clk 00:03:04]} {[%emt
00:00:01]} 12. d5 {[%clk 00:02:45]} {[%emt 00:00:10]} c5 {[%clk 00:03:05]}
{[%emt 00:00:01]} 13. Bxb5 {[%clk 00:02:44]} {[%emt 00:00:03]} a6 {[%clk
00:03:07]} 14. Bd3 {[%clk 00:02:10]} {[%emt 00:00:36]} Ne5 {[%clk 00:02:59]}
{[%emt 00:00:10]} 15. Kb1 {[%clk 00:02:07]} {[%emt 00:00:04]} c4 {[%clk
00:02:52]} {[%emt 00:00:10]} 16. Be4 {[%clk 00:02:00]} {[%emt 00:00:09]} g6
{[%clk 00:02:21]} {[%emt 00:00:33]} 17. Bd4 {[%clk 00:01:18]} {[%emt 00:00:45]}
Nd3 {[%clk 00:01:43]} {[%emt 00:00:40]} 18. f3 {[%clk 00:01:11]} {[%emt
00:00:08]} Rb8 {[%clk 00:01:40]} {[%emt 00:00:05]} 19. Rxd3 {[%clk 00:00:59]}
{[%emt 00:00:14]} cxd3 {[%clk 00:01:38]} {[%emt 00:00:04]} 20. Bxd3 {[%clk
00:01:00]} {[%emt 00:00:01]} f5 {[%clk 00:01:24]} {[%emt 00:00:16]} 21. c4
{[%clk 00:00:50]} {[%emt 00:00:12]} Bf8 {[%clk 00:01:14]} {[%emt 00:00:12]} 22.
Rd1 {[%emt 00:00:22]} Qa5 {[%clk 00:01:01]} 23. Bc3 {[%clk 00:00:40]} {[%emt
00:00:07]} Qb6 {[%clk 00:01:00]} {[%emt 00:00:02]} 24. Nd4 {[%clk 00:00:38]}
{[%emt 00:00:04]} Bd7 {[%clk 00:01:01]} {[%emt 00:00:01]} 25. Nb3 {[%clk
00:00:37]} {[%emt 00:00:03]} Ba4 {[%clk 00:01:01]} {[%emt 00:00:02]} 26. Qd2
{[%clk 00:00:20]} {[%emt 00:00:19]} Bxb3 {[%clk 00:00:56]} {[%emt 00:00:08]} 27.
axb3 {[%clk 00:00:20]} {[%emt 00:00:01]} Qxb3 {[%clk 00:00:57]} 28. Rc1 {[%clk
00:00:19]} {[%emt 00:00:03]} Kh7 {[%clk 00:00:42]} {[%emt 00:00:16]} 29. Qf2
{[%clk 00:00:16]} {[%emt 00:00:05]} Bg7 {[%clk 00:00:34]} {[%emt 00:00:10]} 30.
Qc2 {[%clk 00:00:11]} {[%emt 00:00:07]} Bxc3 {[%clk 00:00:21]} {[%emt
00:00:16]} 31. Qxc3 {[%clk 00:00:12]} {[%emt 00:00:01]} Qb7 {[%clk 00:00:19]}
{[%emt 00:00:04]} 32. d6 {[%clk 00:00:12]} {[%emt 00:00:02]} Rec8 {[%clk
00:00:19]} {[%emt 00:00:02]} 33. Qd4 {[%clk 00:00:11]} {[%emt 00:00:02]} Rc5
{[%clk 00:00:18]} {[%emt 00:00:03]} 34. Rc2 {[%clk 00:00:12]} {[%emt 00:00:01]}
Qb4 {[%clk 00:00:18]} {[%emt 00:00:02]} 35. d7 {[%clk 00:00:12]} {[%emt
00:00:02]} Rd8 {[%clk 00:00:14]} {[%emt 00:00:06]} 36. Re2 {[%clk 00:00:13]}
Rc7 {[%clk 00:00:14]} {[%emt 00:00:02]} 37. Re8 {[%clk 00:00:12]} {[%emt
00:00:04]} f6 {[%clk 00:00:05]} {[%emt 00:00:11]} 38. Rxd8 {[%clk 00:00:10]}
{[%emt 00:00:03]} Qe1+ {[%clk 00:00:06]} 39. Kc2 {[%clk 00:00:11]} {[%emt
00:00:02]} 1-0

[Event "Grandmaster Triathlon - Blitz (GM2)"]
[Site "Biel, Switzerland"]
[Date "2026.07.19"]
[Round "8.3"]
[White "Finek, Vaclav"]
[Black "Vaishali, Rameshbabu"]
[Result "1-0"]
[TimeControl "3 + 2"]
[WhiteTitle "-"]
[BlackTitle "-"]
[WhiteFideId "23718293"]
[BlackFideId "5091756"]
[WhiteElo "2504"]
[BlackElo "2364"]

1. d4 {[%clk 00:03:03]} Nf6 {[%clk 00:03:03]} {[%emt 00:00:01]} 2. c4 {[%clk
00:03:04]} {[%emt 00:00:01]} e6 {[%clk 00:03:04]} {[%emt 00:00:01]} 3. Nf3
{[%clk 00:03:05]} Bb4+ {[%clk 00:03:05]} {[%emt 00:00:01]} 4. Bd2 {[%clk
00:03:06]} Qe7 {[%clk 00:03:06]} 5. g3 {[%clk 00:03:08]} Bxd2+ {[%clk
00:03:06]} {[%emt 00:00:02]} 6. Qxd2 {[%clk 00:03:08]} {[%emt 00:00:01]} Nc6
{[%clk 00:03:00]} {[%emt 00:00:09]} 7. Nc3 {[%clk 00:03:08]} {[%emt 00:00:02]}
d6 {[%clk 00:02:57]} {[%emt 00:00:06]} 8. Bg2 {[%clk 00:03:05]} {[%emt
00:00:04]} e5 {[%clk 00:02:57]} {[%emt 00:00:02]} 9. O-O {[%clk 00:02:48]}
{[%emt 00:00:18]} exd4 {[%clk 00:02:51]} {[%emt 00:00:08]} 10. Nxd4 {[%clk
00:02:49]} {[%emt 00:00:02]} Nxd4 {[%clk 00:02:52]} {[%emt 00:00:01]} 11. Qxd4
{[%clk 00:02:50]} {[%emt 00:00:02]} O-O {[%clk 00:02:52]} {[%emt 00:00:01]} 12.
Rfe1 {[%clk 00:02:48]} {[%emt 00:00:03]} a6 {[%clk 00:02:46]} {[%emt 00:00:08]}
13. Rad1 {[%clk 00:02:49]} {[%emt 00:00:01]} Re8 {[%clk 00:02:34]} {[%emt
00:00:14]} 14. b3 {[%clk 00:02:46]} {[%emt 00:00:05]} Rb8 {[%clk 00:02:13]}
{[%emt 00:00:23]} 15. h3 {[%clk 00:02:41]} {[%emt 00:00:06]} Bd7 {[%clk
00:02:09]} {[%emt 00:00:06]} 16. e4 {[%clk 00:02:39]} {[%emt 00:00:04]} b5
{[%clk 00:02:06]} {[%emt 00:00:06]} 17. Nd5 {[%clk 00:02:39]} {[%emt 00:00:01]}
Nxd5 {[%clk 00:02:06]} {[%emt 00:00:03]} 18. cxd5 {[%clk 00:02:40]} {[%emt
00:00:01]} c5 {[%clk 00:01:44]} {[%emt 00:00:24]} 19. dxc6 {[%clk 00:02:38]}
{[%emt 00:00:03]} Bxc6 {[%clk 00:01:45]} {[%emt 00:00:01]} 20. Qxd6 {[%clk
00:02:38]} {[%emt 00:00:02]} Qb7 {[%clk 00:01:46]} {[%emt 00:00:02]} 21. Rc1
{[%clk 00:02:13]} {[%emt 00:00:27]} Re6 {[%clk 00:01:45]} {[%emt 00:00:03]} 22.
Qf4 {[%clk 00:02:13]} {[%emt 00:00:02]} Rbe8 {[%clk 00:01:45]} {[%emt
00:00:02]} 23. Re3 {[%clk 00:02:00]} {[%emt 00:00:14]} h6 {[%clk 00:01:42]}
{[%emt 00:00:06]} 24. Rce1 {[%clk 00:01:33]} {[%emt 00:00:29]} b4 {[%clk
00:01:39]} {[%emt 00:00:05]} 25. h4 {[%clk 00:01:32]} {[%emt 00:00:03]} R8e7
{[%clk 00:01:18]} {[%emt 00:00:23]} 26. g4 {[%clk 00:01:27]} {[%emt 00:00:07]}
a5 {[%clk 00:00:47]} {[%emt 00:00:33]} 27. g5 {[%clk 00:01:24]} {[%emt
00:00:05]} h5 {[%clk 00:00:48]} {[%emt 00:00:02]} 28. f3 {[%clk 00:01:06]}
{[%emt 00:00:20]} Qb6 {[%clk 00:00:45]} {[%emt 00:00:05]} 29. Kh2 {[%clk
00:01:06]} {[%emt 00:00:02]} Qd4 {[%clk 00:00:44]} {[%emt 00:00:03]} 30. R3e2
{[%clk 00:01:00]} {[%emt 00:00:08]} Re8 {[%clk 00:00:39]} {[%emt 00:00:07]} 31.
Rd2 {[%clk 00:00:54]} {[%emt 00:00:08]} Qc3 {[%clk 00:00:37]} {[%emt 00:00:05]}
32. Qe3 {[%clk 00:00:54]} {[%emt 00:00:02]} Qe5+ {[%clk 00:00:30]} {[%emt
00:00:09]} 33. f4 {[%clk 00:00:55]} {[%emt 00:00:01]} Qb8 {[%clk 00:00:31]}
{[%emt 00:00:01]} 34. Rd4 {[%clk 00:00:52]} {[%emt 00:00:05]} R6e7 {[%clk
00:00:16]} {[%emt 00:00:16]} 35. Red1 {[%clk 00:00:38]} {[%emt 00:00:16]} Qb7
{[%clk 00:00:14]} {[%emt 00:00:05]} 36. Rd8 {[%clk 00:00:24]} {[%emt 00:00:16]}
Qc7 {[%clk 00:00:05]} {[%emt 00:00:11]} 37. Rxe8+ {[%clk 00:00:22]} {[%emt
00:00:04]} Rxe8 {[%clk 00:00:06]} 38. Rc1 {[%clk 00:00:19]} {[%emt 00:00:05]}
Qb7 {[%clk 00:00:05]} {[%emt 00:00:03]} 39. Rc4 {[%clk 00:00:12]} {[%emt
00:00:09]} Bb5 {[%clk 00:00:05]} {[%emt 00:00:02]} 40. Rc5 {[%clk 00:00:13]}
Qb6 {[%clk 00:00:03]} {[%emt 00:00:04]} 41. Qc1 {[%clk 00:00:13]} {[%emt
00:00:02]} Bd7 {[%emt 00:00:03]} 42. Rd5 {[%clk 00:00:11]} {[%emt 00:00:03]}
Be6 {[%clk 00:00:04]} {[%emt 00:00:02]} 43. Qc5 {[%clk 00:00:12]} Qb8 {[%clk
00:00:04]} {[%emt 00:00:02]} 44. Rd6 {[%clk 00:00:13]} Rc8 {[%clk 00:00:05]}
{[%emt 00:00:01]} 45. Qd4 {[%clk 00:00:13]} {[%emt 00:00:02]} Qc7 {[%clk
00:00:06]} {[%emt 00:00:02]} 46. g6 {[%clk 00:00:08]} {[%emt 00:00:06]} Bg4
{[%clk 00:00:04]} {[%emt 00:00:03]} 47. e5 {[%clk 00:00:07]} {[%emt 00:00:04]}
fxg6 {[%clk 00:00:04]} {[%emt 00:00:02]} 48. Rxg6 {[%clk 00:00:06]} {[%emt
00:00:03]} Qc2 {[%clk 00:00:05]} {[%emt 00:00:01]} 49. Rg5 {[%clk 00:00:04]}
{[%emt 00:00:04]} Rf8 {[%clk 00:00:04]} {[%emt 00:00:02]} 50. e6 {[%clk
00:00:04]} {[%emt 00:00:02]} Bxe6 {[%clk 00:00:05]} {[%emt 00:00:02]} 51. Qxg7#
{[%clk 00:00:05]} {[%emt 00:00:01]} 1-0